[Event "Live Chess"]
[Site "Chess.com"]
[Date "2023.09.16"]
[Round "-"]
[White "isanamie12"]
[Black "RyanDiniz2011"]
[Result "0-1"]
[WhiteElo "804"]
[BlackElo "1556"]
[TimeControl "900+5"]
[EndTime "7:19:03 PDT"]
[Termination "RyanDiniz2011 venceu por desistência"]

1. d4 {[%clk 0:15:02.5]} 1... Nf6 {[%clk 0:15:02.5]} 2. c4 {[%clk 0:15:06.2]}
2... g6 {[%clk 0:15:06.8]} 3. Nf3 {[%clk 0:15:09.9]} 3... d6 {[%clk 0:15:11.3]}
4. Nc3 {[%clk 0:15:10.3]} 4... Bg7 {[%clk 0:15:14.6]} 5. e4 {[%clk 0:15:14.6]}
5... e5 {[%clk 0:15:18.1]} 6. d5 {[%clk 0:15:17.2]} 6... O-O {[%clk 0:15:20.5]}
7. Be3 {[%clk 0:15:14.6]} 7... Nbd7 {[%clk 0:15:21.2]} 8. Be2 {[%clk 0:15:17.7]}
8... b6 {[%clk 0:14:45.5]} 9. O-O {[%clk 0:15:18.3]} 9... Bb7 {[%clk 0:14:46.8]}
10. Bd3 {[%clk 0:15:20]} 10... Nc5 {[%clk 0:14:48.1]} 11. Bxc5 {[%clk 0:15:22]}
11... bxc5 {[%clk 0:14:45.2]} 12. Re1 {[%clk 0:15:09.1]} 12... Qd7 {[%clk
0:14:45.2]} 13. a3 {[%clk 0:14:55.2]} 13... a5 {[%clk 0:14:39.1]} 14. b4 {[%clk
0:14:52.4]} 14... axb4 {[%clk 0:14:38.8]} 15. axb4 {[%clk 0:14:45.6]} 15... Rxa1
{[%clk 0:14:39.3]} 16. Qxa1 {[%clk 0:14:47.9]} 16... Ra8 {[%clk 0:14:42.9]} 17.
Qd1 {[%clk 0:14:48.6]} 17... cxb4 {[%clk 0:14:47.2]} 18. Nb5 {[%clk 0:14:48.1]}
18... c6 {[%clk 0:14:47]} 19. dxc6 {[%clk 0:14:31]} 19... Bxc6 {[%clk
0:14:48.9]} 20. Ng5 {[%clk 0:14:31]} 20... Ra2 {[%clk 0:14:30.1]} 21. Qf3 {[%clk
0:14:30.5]} 21... Qg4 {[%clk 0:14:23.7]} 22. Qxg4 {[%clk 0:14:28.8]} 22... Nxg4
{[%clk 0:14:28.1]} 23. Nxd6 {[%clk 0:14:24.8]} 23... Nxf2 {[%clk 0:14:25.6]} 24.
h3 {[%clk 0:14:29.6]} 24... Nxd3 {[%clk 0:14:27.3]} 25. Rd1 {[%clk 0:14:30.8]}
25... Nf4 {[%clk 0:14:18.2]} 26. Nb5 {[%clk 0:14:25.2]} 26... b3 {[%clk
0:14:15.1]} 27. Rd8+ {[%clk 0:14:25.8]} 27... Bf8 {[%clk 0:14:17.4]} 28. Rc8
{[%clk 0:13:52.9]} 28... Rxg2+ {[%clk 0:14:10.5]} 29. Kf1 {[%clk 0:13:53.8]}
29... b2 {[%clk 0:14:06.7]} 30. Nc3 {[%clk 0:13:54.1]} 30... Bd7 {[%clk
0:14:02.8]} 31. Rb8 {[%clk 0:13:53.5]} 31... Rc2 {[%clk 0:14:03.4]} 32. c5
{[%clk 0:13:53.3]} 32... Rxc3 {[%clk 0:14:00.7]} 33. Rxb2 {[%clk 0:13:56.8]}
33... Rxc5 {[%clk 0:14:02.6]} 34. Rd2 {[%clk 0:14:01.2]} 34... Bb5+ {[%clk
0:14:05.2]} 35. Kf2 {[%clk 0:14:02.8]} 35... Kg7 {[%clk 0:14:04.8]} 36. Rd8
{[%clk 0:13:58.5]} 36... Be7 {[%clk 0:14:05.4]} 37. Ra8 {[%clk 0:13:58.1]} 37...
Bxg5 {[%clk 0:14:06.7]} 38. h4 {[%clk 0:13:58.6]} 38... Bxh4+ {[%clk 0:14:08.8]}
0-1

[Event "Live Chess"]
[Site "Chess.com"]
[Date "2023.09.16"]
[Round "-"]
[White "AnaHelenaAulicino"]
[Black "lgomessc"]
[Result "0-1"]
[WhiteElo "621"]
[BlackElo "1139"]
[TimeControl "900+5"]
[EndTime "7:22:06 PDT"]
[Termination "lgomessc venceu por desistência"]

1. e4 {[%clk 0:15:02.4]} 1... e5 {[%clk 0:15:02.7]} 2. Nf3 {[%clk 0:15:04.1]}
2... Nc6 {[%clk 0:15:05.5]} 3. Bc4 {[%clk 0:15:05.9]} 3... Bc5 {[%clk 0:15:05]}
4. d3 {[%clk 0:15:05.2]} 4... h6 {[%clk 0:15:08.8]} 5. Nc3 {[%clk 0:15:05.9]}
5... Nf6 {[%clk 0:15:12.2]} 6. O-O {[%clk 0:15:04.2]} 6... O-O {[%clk
0:15:11.8]} 7. Nh4 {[%clk 0:15:01]} 7... d6 {[%clk 0:15:15.1]} 8. Qf3 {[%clk
0:15:00.2]} 8... Nd4 {[%clk 0:15:11.9]} 9. Qg3 {[%clk 0:15:01.5]} 9... Nh5
{[%clk 0:14:33.5]} 10. Qe3 {[%clk 0:14:09.6]} 10... Nxc2 {[%clk 0:14:33.9]} 11.
Qf3 {[%clk 0:13:52.3]} 11... Nxa1 {[%clk 0:14:29.5]} 12. Nd5 {[%clk 0:13:47.7]}
12... c6 {[%clk 0:14:00.5]} 13. Ne3 {[%clk 0:13:29.6]} 13... Qxh4 {[%clk
0:13:16.8]} 14. Nf5 {[%clk 0:13:06.2]} 14... Bxf5 {[%clk 0:13:16]} 15. Qxf5
{[%clk 0:13:06.6]} 15... Nf6 {[%clk 0:12:54.6]} 16. g3 {[%clk 0:12:07.3]} 16...
Qg4 {[%clk 0:11:58]} 17. Qxg4 {[%clk 0:12:01.3]} 17... Nxg4 {[%clk 0:12:00.8]}
0-1

[Event "Live Chess"]
[Site "Chess.com"]
[Date "2023.09.16"]
[Round "-"]
[White "Sabadin21"]
[Black "Corveloni_Ma"]
[Result "0-1"]
[WhiteElo "876"]
[BlackElo "1396"]
[TimeControl "900+5"]
[EndTime "7:23:30 PDT"]
[Termination "Corveloni_Ma venceu por xeque-mate"]

1. e4 {[%clk 0:14:57.7]} 1... c6 {[%clk 0:15:02.6]} 2. Nf3 {[%clk 0:15:01.8]}
2... d5 {[%clk 0:15:05.7]} 3. exd5 {[%clk 0:15:05]} 3... cxd5 {[%clk 0:15:09.3]}
4. d4 {[%clk 0:15:09.6]} 4... Nf6 {[%clk 0:15:12.3]} 5. Nc3 {[%clk 0:15:14.1]}
5... e6 {[%clk 0:15:16.2]} 6. Bd3 {[%clk 0:15:18.2]} 6... Be7 {[%clk 0:15:20.3]}
7. O-O {[%clk 0:15:22.3]} 7... O-O {[%clk 0:15:24.3]} 8. Be3 {[%clk 0:15:26.4]}
8... Nc6 {[%clk 0:15:28]} 9. Qe2 {[%clk 0:15:30.3]} 9... b6 {[%clk 0:15:21.4]}
10. Rfe1 {[%clk 0:15:33.7]} 10... Bb7 {[%clk 0:15:25]} 11. b3 {[%clk 0:15:38.1]}
11... a6 {[%clk 0:15:09]} 12. Rad1 {[%clk 0:15:40]} 12... Qc7 {[%clk 0:15:12.1]}
13. a4 {[%clk 0:15:24.8]} 13... Bb4 {[%clk 0:15:05.6]} 14. Bd2 {[%clk
0:15:23.1]} 14... Rfe8 {[%clk 0:14:24.1]} 15. Ng5 {[%clk 0:15:21.6]} 15... Nxd4
{[%clk 0:14:15.6]} 16. Qe3 {[%clk 0:15:07.3]} 16... Bxc3 {[%clk 0:14:12.5]} 17.
Bxc3 {[%clk 0:15:10.6]} 17... Qxc3 {[%clk 0:14:15.2]} 18. Qd2 {[%clk 0:14:55.8]}
18... Qxd2 {[%clk 0:14:07.1]} 19. Rxd2 {[%clk 0:15:00.1]} 19... h6 {[%clk
0:14:09.6]} 20. Nh3 {[%clk 0:14:51.3]} 20... e5 {[%clk 0:14:04.8]} 21. f4 {[%clk
0:14:31.8]} 21... exf4 {[%clk 0:13:56.3]} 22. Rxe8+ {[%clk 0:14:35.1]} 22...
Rxe8 {[%clk 0:13:59.6]} 23. Nxf4 {[%clk 0:14:38.2]} 23... g5 {[%clk 0:13:35.9]}
24. Nh3 {[%clk 0:14:34.4]} 24... Nc6 {[%clk 0:12:51.5]} 25. Nf2 {[%clk
0:14:14.5]} 25... Re1+ {[%clk 0:12:50.2]} 26. Bf1 {[%clk 0:14:15.1]} 26... Ne4
{[%clk 0:12:24]} 27. Nxe4 {[%clk 0:14:15.5]} 27... dxe4 {[%clk 0:12:25]} 28. Rf2
{[%clk 0:14:17.5]} 28... e3 {[%clk 0:12:27.5]} 29. Re2 {[%clk 0:14:17]} 29...
Nd4 {[%clk 0:12:27.2]} 30. Rxe1 {[%clk 0:14:19.8]} 30... Nxc2 {[%clk 0:12:23.9]}
31. Re2 {[%clk 0:14:21.8]} 31... Be4 {[%clk 0:12:19.4]} 32. g3 {[%clk
0:14:13.2]} 32... f5 {[%clk 0:12:17.9]} 33. Bg2 {[%clk 0:14:16.2]} 33... Bd3
{[%clk 0:12:03.3]} 34. Rxc2 {[%clk 0:14:12.7]} 34... Bxc2 {[%clk 0:12:06.8]} 35.
Bd5+ {[%clk 0:14:14.8]} 35... Kg7 {[%clk 0:12:09.4]} 36. Bc4 {[%clk 0:14:17.1]}
36... f4 {[%clk 0:12:08.9]} 37. gxf4 {[%clk 0:14:20.1]} 37... gxf4 {[%clk
0:12:12.5]} 38. Kf1 {[%clk 0:14:24]} 38... Kf6 {[%clk 0:12:16.2]} 39. Ke2 {[%clk
0:14:27.4]} 39... Ke5 {[%clk 0:12:10.4]} 40. Bxa6 {[%clk 0:14:25]} 40... Bxb3
{[%clk 0:12:07]} 41. Bb5 {[%clk 0:14:27.1]} 41... Ke4 {[%clk 0:12:08.5]} 42.
Bc6+ {[%clk 0:14:25.7]} 42... Bd5 {[%clk 0:12:07.8]} 43. Bxd5+ {[%clk 0:14:29]}
43... Kxd5 {[%clk 0:12:11.6]} 44. Kf3 {[%clk 0:14:33.5]} 44... Kd4 {[%clk
0:12:14.6]} 45. Kxf4 {[%clk 0:14:37.8]} 45... e2 {[%clk 0:12:18.8]} 46. Kf5
{[%clk 0:14:38.7]} 46... e1=Q {[%clk 0:12:22.5]} 47. Kg6 {[%clk 0:14:43.1]}
47... Qe5 {[%clk 0:12:23.2]} 48. Kxh6 {[%clk 0:14:45.6]} 48... Qf5 {[%clk
0:12:23.8]} 49. h4 {[%clk 0:14:48]} 49... Qg4 {[%clk 0:12:26.7]} 50. h5 {[%clk
0:14:51.7]} 50... Ke5 {[%clk 0:12:28.4]} 51. a5 {[%clk 0:14:54.7]} 51... Kf6
{[%clk 0:12:31.7]} 52. axb6 {[%clk 0:14:56.9]} 52... Qg7# {[%clk 0:12:35.6]} 0-1

[Event "Live Chess"]
[Site "Chess.com"]
[Date "2023.09.16"]
[Round "-"]
[White "Rafael-2021"]
[Black "guilhermemazza"]
[Result "1-0"]
[WhiteElo "1096"]
[BlackElo "458"]
[TimeControl "900+5"]
[EndTime "7:24:12 PDT"]
[Termination "Rafael-2021 venceu por xeque-mate"]

1. e4 {[%clk 0:14:57.9]} 1... e5 {[%clk 0:14:57.2]} 2. Nf3 {[%clk 0:14:59.9]}
2... Nc6 {[%clk 0:14:59.5]} 3. Bc4 {[%clk 0:14:54.9]} 3... d6 {[%clk 0:14:19.2]}
4. d3 {[%clk 0:14:57.9]} 4... Nf6 {[%clk 0:14:05.3]} 5. Nc3 {[%clk 0:15:00.6]}
5... Qd7 {[%clk 0:13:46.8]} 6. Nd5 {[%clk 0:15:00.5]} 6... Qe6 {[%clk
0:13:48.6]} 7. Nxf6+ {[%clk 0:15:02.8]} 7... Qxf6 {[%clk 0:13:51.6]} 8. Bg5
{[%clk 0:15:03.5]} 8... Qg6 {[%clk 0:13:48]} 9. Qd2 {[%clk 0:14:59.3]} 9... Be6
{[%clk 0:13:48.1]} 10. Bxe6 {[%clk 0:15:01.2]} 10... fxe6 {[%clk 0:13:50.7]} 11.
O-O-O {[%clk 0:14:59.9]} 11... Nd4 {[%clk 0:13:46.8]} 12. Nxd4 {[%clk 0:15:01]}
12... exd4 {[%clk 0:13:49.6]} 13. Kb1 {[%clk 0:14:59.5]} 13... Be7 {[%clk
0:13:52.6]} 14. Bxe7 {[%clk 0:15:02.1]} 14... Kxe7 {[%clk 0:13:54.8]} 15. g3
{[%clk 0:15:03.3]} 15... Qh6 {[%clk 0:13:56.3]} 16. Qxh6 {[%clk 0:15:06]} 16...
gxh6 {[%clk 0:13:59.1]} 17. f4 {[%clk 0:15:09.6]} 17... b5 {[%clk 0:13:46]} 18.
e5 {[%clk 0:15:12.4]} 18... dxe5 {[%clk 0:13:49]} 19. fxe5 {[%clk 0:15:15.7]}
19... Rhf8 {[%clk 0:13:52.3]} 20. Rdf1 {[%clk 0:15:18.1]} 20... Rxf1+ {[%clk
0:13:54.8]} 21. Rxf1 {[%clk 0:15:21.7]} 21... Rf8 {[%clk 0:13:58.6]} 22. Rxf8
{[%clk 0:15:21.2]} 22... Kxf8 {[%clk 0:14:02.2]} 23. Kc1 {[%clk 0:15:23.6]}
23... c5 {[%clk 0:14:05]} 24. Kd2 {[%clk 0:15:27.2]} 24... c4 {[%clk 0:14:08.7]}
25. dxc4 {[%clk 0:15:30.5]} 25... bxc4 {[%clk 0:14:12.7]} 26. b3 {[%clk
0:15:30.3]} 26... cxb3 {[%clk 0:14:13.6]} 27. cxb3 {[%clk 0:15:32.2]} 27... a5
{[%clk 0:14:17.3]} 28. Kd3 {[%clk 0:15:36.2]} 28... h5 {[%clk 0:14:18.3]} 29.
Kxd4 {[%clk 0:15:39.9]} 29... h6 {[%clk 0:14:20.2]} 30. Kc5 {[%clk 0:15:42.8]}
30... Kg7 {[%clk 0:14:24.3]} 31. Kb5 {[%clk 0:15:46.7]} 31... Kg6 {[%clk
0:14:25.2]} 32. Kxa5 {[%clk 0:15:50.4]} 32... Kf5 {[%clk 0:14:29.1]} 33. Kb5
{[%clk 0:15:54.3]} 33... Kxe5 {[%clk 0:14:33.1]} 34. a4 {[%clk 0:15:57.8]} 34...
Kd5 {[%clk 0:14:36.9]} 35. a5 {[%clk 0:16:01.1]} 35... e5 {[%clk 0:14:40.8]} 36.
a6 {[%clk 0:16:04.7]} 36... e4 {[%clk 0:14:44.9]} 37. a7 {[%clk 0:16:08.4]}
37... e3 {[%clk 0:14:49]} 38. a8=Q+ {[%clk 0:16:12.1]} 38... Kd4 {[%clk
0:14:52.7]} 39. Qh8+ {[%clk 0:16:13.3]} 39... Kd3 {[%clk 0:14:53.7]} 40. Qh7+
{[%clk 0:16:11.4]} 40... Kd2 {[%clk 0:14:55.9]} 41. Qe4 {[%clk 0:16:14]} 41...
e2 {[%clk 0:14:59.3]} 42. Qd4+ {[%clk 0:16:17]} 42... Kc2 {[%clk 0:14:59.9]} 43.
Qf2 {[%clk 0:16:13.1]} 43... Kd2 {[%clk 0:15:00.1]} 44. Qd4+ {[%clk 0:16:11.6]}
44... Kc2 {[%clk 0:15:01.8]} 45. Qf2 {[%clk 0:16:00.4]} 45... Kd2 {[%clk
0:15:04.5]} 46. Kc4 {[%clk 0:15:59.5]} 46... Kd1 {[%clk 0:15:06.2]} 47. Qd4+
{[%clk 0:15:53]} 47... Kc2 {[%clk 0:15:00.7]} 48. Qd3+ {[%clk 0:15:55.5]} 48...
Kc1 {[%clk 0:15:03]} 49. Qxe2 {[%clk 0:15:59]} 49... Kb1 {[%clk 0:15:06.3]} 50.
Kc3 {[%clk 0:16:01.9]} 50... Kc1 {[%clk 0:15:09.4]} 51. Qc2# {[%clk 0:16:05]}
1-0

[Event "Live Chess"]
[Site "Chess.com"]
[Date "2023.09.16"]
[Round "-"]
[White "CauaLopes12"]
[Black "VitorEMS"]
[Result "1-0"]
[WhiteElo "1325"]
[BlackElo "726"]
[TimeControl "900+5"]
[EndTime "7:26:31 PDT"]
[Termination "CauaLopes12 venceu por desistência"]

1. e4 {[%clk 0:15:02.9]} 1... e5 {[%clk 0:15:02.6]} 2. Nf3 {[%clk 0:15:06.9]}
2... Nf6 {[%clk 0:15:05.1]} 3. Nxe5 {[%clk 0:15:09.1]} 3... d6 {[%clk
0:15:07.3]} 4. Nf3 {[%clk 0:15:12.2]} 4... Nxe4 {[%clk 0:15:10.3]} 5. d3 {[%clk
0:15:16.7]} 5... Nf6 {[%clk 0:15:11.4]} 6. Be2 {[%clk 0:15:18.2]} 6... Nc6
{[%clk 0:15:07.2]} 7. O-O {[%clk 0:15:15]} 7... d5 {[%clk 0:15:06.7]} 8. d4
{[%clk 0:15:16.8]} 8... Bd6 {[%clk 0:15:06.3]} 9. h3 {[%clk 0:15:16]} 9... Bf5
{[%clk 0:14:57.1]} 10. Bg5 {[%clk 0:15:13]} 10... Nb4 {[%clk 0:14:53]} 11. Na3
{[%clk 0:14:55.3]} 11... Bxc2 {[%clk 0:14:49.7]} 12. Nxc2 {[%clk 0:14:56.8]}
12... Nxc2 {[%clk 0:14:50.4]} 13. Qxc2 {[%clk 0:14:59.1]} 13... O-O {[%clk
0:14:52]} 14. Qf5 {[%clk 0:14:50.9]} 14... c6 {[%clk 0:14:38]} 15. Bd3 {[%clk
0:14:52.8]} 15... g6 {[%clk 0:14:37.3]} 16. Qxf6 {[%clk 0:14:53.6]} 16... Bc7
{[%clk 0:14:33.7]} 17. Qxd8 {[%clk 0:14:34.2]} 17... Bxd8 {[%clk 0:14:29.5]} 18.
Bxd8 {[%clk 0:14:37.1]} 18... Raxd8 {[%clk 0:14:31.6]} 19. Rac1 {[%clk
0:14:37.8]} 19... Rfe8 {[%clk 0:14:06.9]} 20. Rfe1 {[%clk 0:14:33.6]} 20...
Rxe1+ {[%clk 0:14:07]} 21. Rxe1 {[%clk 0:14:38]} 21... Kg7 {[%clk 0:13:59.8]}
22. Re7 {[%clk 0:14:38.5]} 22... Rd6 {[%clk 0:13:46]} 23. Rxb7 {[%clk
0:14:40.5]} 23... a5 {[%clk 0:13:47.5]} 24. Ra7 {[%clk 0:14:41.8]} 24... a4
{[%clk 0:13:46.9]} 25. Rxa4 {[%clk 0:14:46.1]} 25... f5 {[%clk 0:13:41.1]} 26.
b4 {[%clk 0:14:46.2]} 26... h5 {[%clk 0:13:35.7]} 27. b5 {[%clk 0:14:47.9]}
27... cxb5 {[%clk 0:13:37.9]} 28. Bxb5 {[%clk 0:14:52.4]} 28... Kf6 {[%clk
0:13:40.2]} 29. Ra6 {[%clk 0:14:56.7]} 29... Rxa6 {[%clk 0:13:41]} 30. Bxa6
{[%clk 0:15:00.3]} 30... g5 {[%clk 0:13:44.6]} 31. a4 {[%clk 0:15:04.5]} 31...
g4 {[%clk 0:13:47.5]} 32. hxg4 {[%clk 0:15:05.4]} 32... hxg4 {[%clk 0:13:49.9]}
33. Ne5 {[%clk 0:15:09.8]} 33... Kg5 {[%clk 0:13:49.5]} 34. Be2 {[%clk 0:15:11]}
34... Kf4 {[%clk 0:13:47.7]} 35. Bd3 {[%clk 0:14:59.7]} 35... Kg5 {[%clk
0:13:45.4]} 36. a5 {[%clk 0:15:02.9]} 36... f4 {[%clk 0:13:47.1]} 37. a6 {[%clk
0:15:04.6]} 37... g3 {[%clk 0:13:44.1]} 38. f3 {[%clk 0:14:57.4]} 38... Kh4
{[%clk 0:13:41]} 39. a7 {[%clk 0:14:59.1]} 1-0

[Event "Live Chess"]
[Site "Chess.com"]
[Date "2023.09.16"]
[Round "-"]
[White "pedromiguelchess"]
[Black "DaviFuzatto"]
[Result "1/2-1/2"]
[WhiteElo "1106"]
[BlackElo "1368"]
[TimeControl "900+5"]
[EndTime "7:27:59 PDT"]
[Termination "Empate por repetição"]

1. e4 {[%clk 0:15:02.6]} 1... e6 {[%clk 0:15:01.9]} 2. d4 {[%clk 0:15:04.3]}
2... d5 {[%clk 0:15:05.3]} 3. exd5 {[%clk 0:15:08.2]} 3... exd5 {[%clk 0:15:06]}
4. Nc3 {[%clk 0:15:12]} 4... Nf6 {[%clk 0:15:09.1]} 5. Nf3 {[%clk 0:15:12.9]}
5... Bb4 {[%clk 0:15:09.8]} 6. Bd2 {[%clk 0:15:14.5]} 6... c6 {[%clk 0:15:13.3]}
7. Bd3 {[%clk 0:15:07.2]} 7... O-O {[%clk 0:15:16.5]} 8. O-O {[%clk 0:15:09.1]}
8... Re8 {[%clk 0:15:19.9]} 9. a3 {[%clk 0:15:08.9]} 9... Ba5 {[%clk 0:15:23]}
10. Ne5 {[%clk 0:14:56.6]} 10... Nbd7 {[%clk 0:15:21.3]} 11. Nxd7 {[%clk
0:14:36.6]} 11... Bxd7 {[%clk 0:15:26.2]} 12. Ne2 {[%clk 0:14:29.1]} 12... Bxd2
{[%clk 0:15:09.8]} 13. Qxd2 {[%clk 0:14:31.1]} 13... Qc7 {[%clk 0:15:13.6]} 14.
h3 {[%clk 0:14:23.5]} 14... Re7 {[%clk 0:15:11.4]} 15. Rfe1 {[%clk 0:13:45]}
15... Rae8 {[%clk 0:15:13.5]} 16. Nc3 {[%clk 0:13:03.2]} 16... Qd6 {[%clk
0:14:29.3]} 17. Rxe7 {[%clk 0:12:44.3]} 17... Qxe7 {[%clk 0:14:25]} 18. Na4
{[%clk 0:12:40.4]} 18... b6 {[%clk 0:14:23.7]} 19. b3 {[%clk 0:12:25.9]} 19...
Ne4 {[%clk 0:14:01.6]} 20. Bxe4 {[%clk 0:12:17.5]} 20... Qxe4 {[%clk 0:14:06.5]}
21. c4 {[%clk 0:12:07.7]} 21... dxc4 {[%clk 0:13:00.5]} 22. bxc4 {[%clk
0:12:07.6]} 22... Qe6 {[%clk 0:12:43.3]} 23. d5 {[%clk 0:11:53.2]} 23... cxd5
{[%clk 0:12:26.4]} 24. cxd5 {[%clk 0:11:56.3]} 24... Qe5 {[%clk 0:12:30.7]} 25.
Nc3 {[%clk 0:11:51.9]} 25... Rc8 {[%clk 0:11:25.5]} 26. Rc1 {[%clk 0:11:37.2]}
26... Bf5 {[%clk 0:10:41.1]} 27. d6 {[%clk 0:11:26]} 27... Rd8 {[%clk
0:10:36.1]} 28. Rd1 {[%clk 0:11:19.8]} 28... h6 {[%clk 0:10:36]} 29. Qd4 {[%clk
0:10:51.2]} 29... Qa5 {[%clk 0:09:46.7]} 30. Qb4 {[%clk 0:10:18.5]} 30... Qe5
{[%clk 0:09:45.1]} 31. Qd4 {[%clk 0:10:05.4]} 31... Qa5 {[%clk 0:09:44.1]} 32.
Qb4 {[%clk 0:10:09]} 32... Qe5 {[%clk 0:09:48]} 33. Qd4 {[%clk 0:10:12.7]}
1/2-1/2

[Event "Live Chess"]
[Site "Chess.com"]
[Date "2023.09.16"]
[Round "-"]
[White "SaladaChess"]
[Black "Mariafernanda2805"]
[Result "1-0"]
[WhiteElo "1135"]
[BlackElo "1000"]
[TimeControl "900+5"]
[EndTime "7:28:17 PDT"]
[Termination "SaladaChess venceu por xeque-mate"]

1. c4 {[%clk 0:15:02.2]} 1... c5 {[%clk 0:14:48.2]} 2. Nc3 {[%clk 0:15:04.6]}
2... d6 {[%clk 0:14:50.6]} 3. Nf3 {[%clk 0:15:07.7]} 3... Nf6 {[%clk 0:14:52]}
4. g3 {[%clk 0:15:10.1]} 4... g6 {[%clk 0:14:54.3]} 5. Bg2 {[%clk 0:15:13.4]}
5... Bg7 {[%clk 0:14:57.1]} 6. e3 {[%clk 0:15:17.3]} 6... O-O {[%clk 0:14:59.9]}
7. d4 {[%clk 0:15:19.9]} 7... cxd4 {[%clk 0:15:01.7]} 8. exd4 {[%clk 0:15:23.9]}
8... Bd7 {[%clk 0:14:57]} 9. O-O {[%clk 0:15:25.5]} 9... Nc6 {[%clk 0:14:54.6]}
10. Bg5 {[%clk 0:15:25.1]} 10... Bg4 {[%clk 0:14:49.2]} 11. h3 {[%clk
0:15:26.2]} 11... Bxf3 {[%clk 0:14:51.6]} 12. Qxf3 {[%clk 0:15:30.1]} 12... Nxd4
{[%clk 0:14:52.2]} 13. Qxb7 {[%clk 0:15:24.4]} 13... a6 {[%clk 0:14:17.4]} 14.
Qxa8 {[%clk 0:15:27.7]} 14... Qxa8 {[%clk 0:14:19.3]} 15. Bxa8 {[%clk
0:15:31.3]} 15... Rxa8 {[%clk 0:14:21.4]} 16. Rad1 {[%clk 0:15:34.5]} 16... Nf3+
{[%clk 0:14:22]} 17. Kg2 {[%clk 0:15:34.9]} 17... Nxg5 {[%clk 0:14:24.7]} 18.
Rfe1 {[%clk 0:15:33]} 18... Re8 {[%clk 0:14:25.1]} 19. Ne2 {[%clk 0:15:18.7]}
19... e5 {[%clk 0:14:26.6]} 20. f4 {[%clk 0:15:16.8]} 20... exf4 {[%clk
0:14:28.8]} 21. Nxf4 {[%clk 0:15:20.5]} 21... Nfe4 {[%clk 0:14:23.4]} 22. h4
{[%clk 0:15:16.3]} 22... h6 {[%clk 0:14:04.7]} 23. hxg5 {[%clk 0:15:19.2]} 23...
hxg5 {[%clk 0:14:08]} 24. Nd5 {[%clk 0:15:18.1]} 24... Bxb2 {[%clk 0:14:08.3]}
25. Rb1 {[%clk 0:15:08.5]} 25... Bd4 {[%clk 0:13:58.2]} 26. Re2 {[%clk
0:15:01.9]} 26... Kg7 {[%clk 0:13:44.6]} 27. Rbe1 {[%clk 0:14:58.7]} 27... f5
{[%clk 0:13:34.2]} 28. g4 {[%clk 0:14:55.5]} 28... a5 {[%clk 0:13:16.2]} 29. Nc7
{[%clk 0:14:49.9]} 29... Re7 {[%clk 0:13:14.6]} 30. Nd5 {[%clk 0:14:50]} 30...
Re6 {[%clk 0:13:14.1]} 31. Nc7 {[%clk 0:14:47.4]} 31... Re7 {[%clk 0:13:17.3]}
32. Nb5 {[%clk 0:14:47.7]} 32... Bc5 {[%clk 0:13:12.1]} 33. Nc3 {[%clk
0:14:37.8]} 33... Bb4 {[%clk 0:12:52.1]} 34. Nd5 {[%clk 0:14:21.8]} 34... Bxe1
{[%clk 0:12:52.2]} 35. Nxe7 {[%clk 0:14:25.5]} 35... Bc3 {[%clk 0:12:43.5]} 36.
gxf5 {[%clk 0:14:26.7]} 36... Kf6 {[%clk 0:12:43.9]} 37. Rxe4 {[%clk 0:14:22.8]}
37... gxf5 {[%clk 0:12:46.7]} 38. Nd5+ {[%clk 0:14:24.2]} 38... Kf7 {[%clk
0:12:46.4]} 39. Re7+ {[%clk 0:14:25.2]} 39... Kg6 {[%clk 0:12:49]} 40. Nxc3
{[%clk 0:14:28.6]} 40... Kf6 {[%clk 0:12:49.3]} 41. Nd5+ {[%clk 0:14:31.2]}
41... Kg6 {[%clk 0:12:52]} 42. Re6+ {[%clk 0:14:35.3]} 42... Kh5 {[%clk
0:12:53.8]} 43. Rxd6 {[%clk 0:14:39.1]} 43... Kg4 {[%clk 0:12:57.2]} 44. Ne3+
{[%clk 0:14:38.7]} 44... Kf4 {[%clk 0:13:00.2]} 45. Nxf5 {[%clk 0:14:42.3]}
45... Kxf5 {[%clk 0:13:03.9]} 46. c5 {[%clk 0:14:46.7]} 46... g4 {[%clk
0:13:05.5]} 47. c6 {[%clk 0:14:50.6]} 47... Kf4 {[%clk 0:13:09.9]} 48. c7 {[%clk
0:14:51.9]} 48... g3 {[%clk 0:13:14.1]} 49. c8=Q {[%clk 0:14:52.4]} 49... Ke5
{[%clk 0:13:14.3]} 50. Qe6+ {[%clk 0:14:54.9]} 50... Kf4 {[%clk 0:13:17.6]} 51.
Rd4+ {[%clk 0:14:57.9]} 51... Kg5 {[%clk 0:13:20.9]} 52. Qe5+ {[%clk 0:15:01.5]}
52... Kg6 {[%clk 0:13:22.5]} 53. Rd6+ {[%clk 0:15:05.5]} 53... Kf7 {[%clk
0:13:26]} 54. Rf6+ {[%clk 0:15:05]} 54... Kg7 {[%clk 0:13:28.5]} 55. Qg5+ {[%clk
0:15:09.1]} 55... Kh7 {[%clk 0:13:31.4]} 56. Rh6# {[%clk 0:15:13.6]} 1-0

[Event "Live Chess"]
[Site "Chess.com"]
[Date "2023.09.16"]
[Round "-"]
[White "Ruanfelipe2014"]
[Black "Alplee"]
[Result "1-0"]
[WhiteElo "993"]
[BlackElo "1949"]
[TimeControl "900+5"]
[EndTime "7:28:21 PDT"]
[Termination "Ruanfelipe2014 venceu por desistência"]

1. e4 {[%clk 0:15:02]} 1... c5 {[%clk 0:15:02.3]} 2. Bc4 {[%clk 0:15:02.8]} 2...
e6 {[%clk 0:15:05.4]} 3. d3 {[%clk 0:14:56.6]} 3... Nc6 {[%clk 0:15:08.7]} 4.
Nc3 {[%clk 0:14:55.8]} 4... a6 {[%clk 0:15:02.3]} 5. Nf3 {[%clk 0:14:50.2]} 5...
b5 {[%clk 0:15:05.8]} 6. Bb3 {[%clk 0:14:45.3]} 6... Bb7 {[%clk 0:15:10.2]} 7.
a4 {[%clk 0:14:42.8]} 7... b4 {[%clk 0:15:01.5]} 8. Ne2 {[%clk 0:14:34.2]} 8...
a5 {[%clk 0:15:04.6]} 9. c3 {[%clk 0:14:32.2]} 9... Nge7 {[%clk 0:14:48.4]} 10.
e5 {[%clk 0:14:26.1]} 10... Ng6 {[%clk 0:13:41.3]} 11. Bg5 {[%clk 0:14:21.3]}
11... f6 {[%clk 0:13:14]} 12. exf6 {[%clk 0:14:22.1]} 12... gxf6 {[%clk
0:13:18.9]} 13. Be3 {[%clk 0:14:20.9]} 13... Qb6 {[%clk 0:12:35.9]} 14. d4
{[%clk 0:14:10.6]} 14... Kf7 {[%clk 0:12:12]} 15. d5 {[%clk 0:13:56.6]} 15...
Nce5 {[%clk 0:11:45.5]} 16. dxe6+ {[%clk 0:13:54.8]} 16... dxe6 {[%clk
0:11:47.9]} 17. Nxe5+ {[%clk 0:13:54.2]} 17... Nxe5 {[%clk 0:11:48.4]} 18. Nf4
{[%clk 0:13:43.3]} 18... Bc8 {[%clk 0:11:32.3]} 19. Qh5+ {[%clk 0:13:27.1]}
19... Kg7 {[%clk 0:11:25.5]} 20. Nh3 {[%clk 0:12:40.8]} 20... Ng6 {[%clk
0:11:24.1]} 21. Qh6+ {[%clk 0:12:20.2]} 21... Kf7 {[%clk 0:11:20.4]} 22. Qh5
{[%clk 0:12:07.8]} 22... Qc6 {[%clk 0:11:15.6]} 23. Rc1 {[%clk 0:11:52.3]} 23...
Qxg2 {[%clk 0:11:04.5]} 24. Rg1 {[%clk 0:11:37.6]} 1-0